fUSD/lending_fUSD_20250519
["ID","MTS","AMOUNT","RATE_DAILY","PERIOD"]
[361625099,1747647050399,-605.44,0.00013698,2]
[361625100,1747647050409,-6447.97,0.00013698,2]
[361625101,1747647050417,-420.0,0.00013698,2]
[361625102,1747647050427,-420.0,0.00013698,2]
[361625103,1747647050436,-952.35,0.00013698,2]
[361625104,1747647050445,-2400.61,0.00013698,2]
[361625105,1747647050455,-714.93,0.00013698,2]
[361625106,1747647050463,-420.0,0.00013698,2]
[361625107,1747647050472,-7114.77,0.00013698,2]
[361625108,1747647050482,-480.32,0.00013698,2]
[361625109,1747647050490,-420.0,0.00013698,2]
[361625110,1747647050499,-153.52475057,0.00013698,2]
[361625111,1747647050509,-420.0,0.00013698,2]
[361625112,1747647050519,-537.8,0.00013698,2]
[361625113,1747647050528,-2104.6,0.00013698,2]
[361625114,1747647050537,-400.0,0.00013698,2]
[361625115,1747647050547,-420.0,0.00013698,2]
[361625116,1747647050557,-420.0,0.00013698,2]
[361625117,1747647050566,-447.46,0.00013698,2]
[361625118,1747647050575,-420.0,0.00013698,2]
[361625119,1747647050585,-420.0,0.00013698,2]
[361625120,1747647050594,-1023.73,0.00013698,2]
[361625121,1747647050602,-505.35,0.00013698,2]
[361625122,1747647050611,-420.0,0.00013698,2]
[361625123,1747647050621,-732.12,0.00013698,2]
[361625124,1747647050631,-420.0,0.00013698,2]
[361625125,1747647050640,-420.0,0.00013698,2]
[361625126,1747647050649,-420.0,0.00013698,2]
[361625127,1747647050659,-420.0,0.00013698,2]
[361625128,1747647050668,-420.0,0.00013698,2]
[361625129,1747647050678,-846.41,0.00013698,2]
[361625130,1747647050688,-420.0,0.00013698,2]
[361625131,1747647050697,-420.0,0.00013698,2]
[361625132,1747647050706,-420.0,0.00013698,2]
[361625133,1747647050716,-202.88,0.00013699,2]
[361625134,1747647050725,-202.88,0.00013699,2]
[361625135,1747647050734,-202.88,0.00013699,2]
[361625136,1747647050744,-202.88,0.00013699,2]
[361625137,1747647050753,-202.88,0.00013699,2]
[361625138,1747647050762,-202.88,0.00013699,2]
[361625139,1747647050772,-202.88,0.00013699,2]
[361625140,1747647050781,-202.88,0.00013699,2]
[361625141,1747647050791,-202.88,0.00013699,2]
[361625142,1747647050803,-202.88,0.00013699,2]
[361625143,1747647050813,-202.88,0.00013699,2]
[361625144,1747647050822,-202.88,0.00013699,2]
[361625145,1747647050832,-202.88,0.00013699,2]
[361625146,1747647050843,-202.88,0.00013699,2]
[361625147,1747647050852,-202.88,0.00013699,2]
[361625148,1747647050862,-202.88,0.00013699,2]
[361625149,1747647050871,-202.88,0.00013699,2]
[361625150,1747647050881,-202.88,0.00013699,2]
[361625151,1747647050890,-202.88,0.00013699,2]
[361625152,1747647050900,-203.06556818,0.00013699,2]
[361625153,1747647050909,-200.0,0.00013699,2]
[361625154,1747647050918,-729.27,0.00013699,2]
[361625155,1747647050928,-1500.0,0.00013699,2]
[361625156,1747647050937,-19999.99,0.00013699,2]
[361625157,1747647050947,-6068.39,0.00013699,2]
[361625158,1747647050957,-616.43,0.00013699,2]
[361625159,1747647050966,-29999.99,0.00013699,2]
[361625160,1747647050975,-2875.86574442,0.00013699,2]
[361625161,1747647050984,-294.88865244,0.00013699,2]
[361625162,1747647050993,-500.0,0.00013699,2]
[361625163,1747647051003,-607.12034082,0.00013699,2]
[361625164,1747647051012,-500.0,0.00013699,2]
[361625165,1747647051021,-500.0,0.00013699,2]
[361625166,1747647051030,-500.0,0.00013699,2]
[361625167,1747647051042,-500.0,0.00013699,2]
[361625168,1747647051052,-500.0,0.00013699,2]
[361625169,1747647051062,-500.0,0.00013699,2]
[361625170,1747647051072,-500.0,0.00013699,2]
[361625171,1747647051082,-162.76,0.000137,2]
[361625172,1747647051091,-353.24,0.000137,2]
[361625173,1747647051101,-352.72,0.000137,2]
[361625174,1747647051110,-166.58,0.000137,2]
[361625175,1747647051121,-162.71,0.000137,2]
[361625176,1747647051130,-725.23,0.000137,2]
[361625177,1747647051140,-971.34,0.000137,2]
[361625178,1747647051149,-154.0,0.00013703,2]
[361625179,1747647051158,-934.0,0.00013703,2]
[361625180,1747647051168,-163.07712506,0.00013708,2]
[361625181,1747647051177,-1000.0,0.00013708,2]
[361625182,1747647051186,-2875.86574442,0.00013732,2]
[361625183,1747647051195,-200.0,0.00013752,2]
[361625184,1747647051205,-500.0,0.00013753,2]
[361625185,1747647051214,-2875.86574442,0.00013766,2]
[361625186,1747647051223,-298.72054978,0.0001379,2]
[361625187,1747647051233,-13541.768615,0.00013798,2]
[361625188,1747647051242,-119599.3205272,0.00013798,2]
[361625189,1747647051251,-2875.86574442,0.00013799,2]
[361625190,1747647051261,-162.76,0.000138,2]
[361625191,1747647051270,-353.24,0.000138,2]
[361625192,1747647051280,-453.11,0.000138,2]
[361625193,1747647051289,-162.76,0.000138,2]
[361625194,1747647051298,-150.0,0.000138,2]
[361625195,1747647051308,-353.24,0.000138,2]
[361625196,1747647051317,-453.11,0.000138,2]
[361625197,1747647051326,-162.76,0.000138,2]
[361625198,1747647051335,-353.24,0.000138,2]
[361625199,1747647051344,-452.63,0.000138,2]
[361625200,1747647051354,-353.24,0.000138,2]
[361625201,1747647051362,-162.76,0.000138,2]
[361625202,1747647051372,-162.76,0.000138,2]
[361625203,1747647051381,-353.24,0.000138,2]
[361625204,1747647051390,-144090.60479141,0.000138,2]
[361625205,1747647051484,-7705.80501196,0.000138,2]
[361625206,1747647052291,-400.0,0.00013698,2]
[361625207,1747647052300,-1400.0,0.000138,2]
[361625212,1747647491104,-300.0,0.00012141,2]
[361625213,1747647491128,-19812.44,0.00012142,2]
[361625214,1747647491150,-500.0,0.00012168,2]
[361625215,1747647491173,-1001.55,0.0001223,2]
[361625216,1747647491197,-386.01,0.00012802,2]
[361625217,1747647558519,150.0,0.00013648,120]
[361625218,1747647560162,150.0,0.00013648,120]
[361625219,1747647561525,150.0,0.00013648,120]
[361625220,1747647737231,-198.0,0.00011934,2]
[361625222,1747647753972,150.051918,0.000273,120]
[361625223,1747647755393,150.051918,0.000273,120]
[361625224,1747647756408,150.051918,0.000273,120]
[361625225,1747647757379,150.051918,0.000273,120]
[361625226,1747647758682,150.051918,0.000273,120]
[361625227,1747647760185,150.051918,0.000273,120]
[361625228,1747647762426,150.051918,0.000273,120]
[361625231,1747647962758,-152.0,0.00011786,2]
[361625232,1747647967204,-98.0,0.00011786,2]
[361625233,1747647986012,-155.65785344,0.0001187,2]
[361625234,1747647989890,-233.50250077,0.0001142,2]
[361625235,1747647992091,-162.02424579,0.0001142,2]
[361625236,1747647996137,-4.47325344,0.0001142,2]
[361625237,1747648027141,-244.34214656,0.0001187,2]
[361625238,1747648027162,-150.0,0.00012189,2]
[361625239,1747648027183,-166.78,0.00012191,2]
[361625240,1747648027205,-195.11,0.00012201,2]
[361625241,1747648027226,-1000.0,0.00012205,2]
[361625242,1747648027247,-400.0,0.0001233,2]
[361625243,1747648027268,-138.57806604,0.00012565,2]
[361625244,1747648083005,372.82916921,0.00025,60]
[361625246,1747648118566,870.55,0.00010307,2]
[361625253,1747648171231,991.8,0.00012214,2]
[361625255,1747648203210,534.52,0.00012225,2]
[361625266,1747648231521,-17.96193396,0.00012565,2]
[361625267,1747648231530,-482.03806604,0.00012571,2]
[361625268,1747648231541,-388.51193396,0.00012571,2]
[361625269,1747648231550,-283.57806404,0.0001278,2]
[361625343,1747648239644,-116.42193596,0.0001278,2]
[361625344,1747648239653,-180.03,0.00012813,2]
[361625345,1747648239663,-180.03,0.00012816,2]
[361625346,1747648239673,-539.29,0.00012819,2]
[361625347,1747648239683,-180.03,0.0001282,2]
[361625348,1747648239693,-180.03,0.00012823,2]
[361625349,1747648239703,-180.03,0.00012826,2]
[361625350,1747648239712,-180.03,0.0001283,2]
[361625351,1747648239722,-180.03,0.00012833,2]
[361625352,1747648239731,-180.03,0.00012836,2]
[361625353,1747648239741,-180.03,0.0001284,2]
[361625354,1747648239751,-180.03,0.00012843,2]
[361625355,1747648239760,-180.03,0.00012847,2]
[361625356,1747648239770,-180.03,0.0001285,2]
[361625357,1747648239779,-180.03,0.00012853,2]
[361625358,1747648239789,-180.03,0.00012857,2]
[361625359,1747648239799,-180.03,0.0001286,2]
[361625360,1747648239808,-180.03,0.00012863,2]
[361625361,1747648239817,-180.03,0.00012867,2]
[361625362,1747648239826,-180.03,0.0001287,2]
[361625363,1747648239836,-300.0,0.00012872,2]
[361625364,1747648239845,-1200.0,0.00012872,2]
[361625365,1747648239855,-150.0,0.00012873,2]
[361625366,1747648239864,-180.03,0.00012873,2]
[361625367,1747648239873,-180.03,0.00012877,2]
[361625368,1747648239882,-150.3,0.00012978,2]
[361625369,1747648239892,-500.0,0.00013068,2]
[361625370,1747648239902,-151.0,0.00013147,2]
[361625371,1747648239912,-155.78518109,0.00013147,2]
[361625372,1747648239921,-296.0,0.00013147,2]
[361625373,1747648239931,-668.65185757,0.00013147,2]
[361625374,1747648239940,-668.65185757,0.00013147,2]
[361625375,1747648239950,-207.4,0.00013147,2]
[361625376,1747648239959,-1199.20597015,0.00013147,2]
[361625377,1747648239969,-353.24,0.00013178,2]
[361625378,1747648239978,-353.24,0.000132,2]
[361625379,1747648239987,-849.94,0.000132,2]
[361625380,1747648239997,-353.24,0.000132,2]
[361625381,1747648240006,-450.25,0.000132,2]
[361625382,1747648240015,-242.91568937,0.000132,2]
[361625383,1747648240063,-210.19431063,0.000132,2]
[361625384,1747648240073,-353.24,0.000132,2]
[361625385,1747648240083,-453.11,0.000132,2]
[361625386,1747648240092,-453.11,0.000132,2]
[361625387,1747648240101,-162.76,0.000132,2]
[361625388,1747648240111,-353.24,0.000132,2]
[361625389,1747648240120,-301.52494519,0.000132,2]
[361625390,1747648240132,-51.71505481,0.000132,2]
[361625391,1747648240141,-845.81,0.000132,2]
[361625392,1747648240151,-353.24,0.000132,2]
[361625393,1747648240161,-1076.0,0.00013216,2]
[361625394,1747648240170,-400.0,0.0001323,2]
[361625395,1747648240179,-150.3,0.000133,2]
[361625396,1747648240191,-150.0,0.00013348,2]
[361625397,1747648240201,-150.0,0.00013348,2]
[361625398,1747648240210,-150.0,0.00013348,2]
[361625399,1747648240220,-150.0,0.00013348,2]
[361625400,1747648240230,-23.01162707,0.00013425,2]
[361625401,1747648240242,-430.09837293,0.00013425,2]
[361625402,1747648240251,-150.0,0.00013448,2]
[361625403,1747648240261,-150.0,0.00013448,2]
[361625404,1747648240277,-150.0,0.00013448,2]
[361625405,1747648240287,-150.0,0.00013448,2]
[361625406,1747648240296,-150.0,0.00013548,2]
[361625407,1747648240306,-127.39894499,0.00013548,2]
[361625408,1747648240781,-22.60105501,0.00013548,2]
[361625409,1747648240791,-150.0,0.00013548,2]
[361625410,1747648240800,-150.0,0.00013548,2]
[361625411,1747648240810,-161.11014602,0.00013598,2]
[361625412,1747648240819,-4699.24507514,0.00013598,2]
[361625413,1747648240828,-1554.07291885,0.00013598,2]
[361625414,1747648240838,-158.58407816,0.00013598,2]
[361625415,1747648240848,-216.87364653,0.00013598,2]
[361625416,1747648240859,-3138.8946,0.00013598,2]
[361625417,1747648240868,-1000.0,0.00013598,2]
[361625418,1747648240878,-1000.0,0.00013598,2]
[361625419,1747648240888,-2500.0,0.00013598,2]
[361625420,1747648240898,-442.89,0.000136,2]
[361625421,1747648240908,-4699.24507513,0.00013632,2]
[361625422,1747648240917,-1554.07291877,0.00013632,2]
[361625423,1747648240927,-365.78793875,0.00013638,2]
[361625424,1747648240939,-6.43528095,0.00013638,2]
[361625425,1747648240948,-150.0,0.00013648,2]
[361625426,1747648240958,-150.0,0.00013648,2]
[361625427,1747648240967,-150.0,0.00013648,2]
[361625428,1747648240976,-150.0,0.00013648,2]
[361625429,1747648240985,-4699.24507513,0.00013665,2]
[361625430,1747648240994,-1554.07291877,0.00013665,2]
[361625431,1747648241004,-500.0,0.00013673,2]
[361625432,1747648241014,-500.0,0.00013673,2]
[361625433,1747648241024,-500.0,0.00013673,2]
[361625434,1747648241033,-364.44640301,0.00013673,2]
[361625435,1747648241042,-307.7173449,0.00013673,2]
[361625436,1747648241051,-500.75801493,0.00013673,2]
[361625437,1747648241061,-500.0,0.00013673,2]
[361625438,1747648241070,-500.0,0.00013673,2]
[361625439,1747648241080,-400.0,0.0001368,2]
[361625440,1747648241089,-162.82,0.00013688,2]
[361625441,1747648241099,-693.3919763,0.00013695,2]
[361625442,1747648241108,-1216.68392049,0.00013697,3]
[361625443,1747648241119,-400.0,0.00013698,2]
[361625444,1747648241128,-400.0,0.00013698,2]
[361625445,1747648241137,-400.0,0.00013698,2]
[361625446,1747648241146,-400.0,0.00013698,2]
[361625447,1747648241156,-420.0,0.00013698,2]
[361625448,1747648241165,-287.00498643,0.00013698,2]
[361625449,1747648241175,-175.896441,0.00013698,2]
[361625450,1747648241184,-420.0,0.00013698,2]
[361625451,1747648241193,-420.0,0.00013698,2]
[361625452,1747648241205,-3084.535999,0.00013698,2]
[361625453,1747648241215,-400.81825675,0.00013698,2]
[361625454,1747648241225,-667.631898,0.00013698,2]
[361625455,1747648241234,-400.0,0.00013698,2]
[361625456,1747648241245,-420.0,0.00013698,2]
[361625457,1747648241254,-406.72939467,0.00013698,2]
[361625458,1747648241263,-420.0,0.00013698,2]
[361625459,1747648241273,-420.0,0.00013698,2]
[361625460,1747648241282,-420.0,0.00013698,2]
[361625461,1747648241291,-420.0,0.00013698,2]
[361625462,1747648241300,-384.3193465,0.00013698,2]
[361625463,1747648241309,-500.0,0.00013698,2]
[361625464,1747648241319,-400.0,0.00013698,2]
[361625465,1747648241328,-420.0,0.00013698,2]
[361625466,1747648241337,-1010.59104096,0.00013698,2]
[361625467,1747648241346,-254.77032383,0.00013698,2]
[361625468,1747648241356,-250.361962,0.00013698,2]
[361625469,1747648241365,-360.0,0.00013698,2]
[361625470,1747648241375,-420.0,0.00013698,2]
[361625471,1747648241384,-420.0,0.00013698,2]
[361625472,1747648241393,-554.85,0.00013698,2]
[361625473,1747648241402,-432.54,0.00013698,2]
[361625474,1747648241412,-400.0,0.00013698,2]
[361625475,1747648241421,-420.0,0.00013698,2]
[361625476,1747648241430,-400.0,0.00013698,2]
[361625477,1747648241439,-320.0,0.00013698,2]
[361625478,1747648241448,-420.0,0.00013698,2]
[361625479,1747648241458,-420.0,0.00013698,2]
[361625480,1747648241467,-380.0,0.00013698,2]
[361625481,1747648241477,-504.52907355,0.00013698,2]
[361625482,1747648241487,-420.49971916,0.00013698,2]
[361625483,1747648241496,-380.0,0.00013698,2]
[361625484,1747648241505,-420.0,0.00013698,2]
[361625485,1747648241515,-376.17050034,0.00013698,2]
[361625486,1747648241524,-655.19,0.00013698,2]
[361625487,1747648241533,-156.426849,0.00013698,2]
[361625488,1747648241542,-400.0,0.00013698,2]
[361625489,1747648241551,-302.71533365,0.00013698,2]
[361625490,1747648241561,-349.23171662,0.00013698,2]
[361625491,1747648241570,-420.0,0.00013698,2]
[361625492,1747648241579,-410.63176689,0.00013698,2]
[361625493,1747648241874,-420.0,0.00013698,2]
[361625494,1747648241884,-420.0,0.00013698,2]
[361625495,1747648241894,-360.0,0.00013698,2]
[361625496,1747648241904,-166.361386,0.00013698,2]
[361625497,1747648241913,-645.6,0.00013698,2]
[361625498,1747648241923,-420.0,0.00013698,2]
[361625499,1747648241933,-153.317344,0.00013698,2]
[361625500,1747648241943,-400.0,0.00013698,2]
[361625501,1747648241953,-420.0,0.00013698,2]
[361625502,1747648241963,-731.341281,0.00013698,2]
[361625503,1747648241972,-509.12,0.00013698,2]
[361625504,1747648241982,-485.01,0.00013698,2]
[361625505,1747648241992,-420.0,0.00013698,2]
[361625506,1747648242002,-506.64,0.00013698,2]
[361625507,1747648242011,-688.87,0.00013698,2]
[361625508,1747648242020,-420.0,0.00013698,2]
[361625509,1747648242031,-420.0,0.00013698,2]
[361625510,1747648242041,-420.0,0.00013698,2]
[361625511,1747648242052,-407.86250084,0.00013698,2]
[361625512,1747648242061,-420.0,0.00013698,2]
[361625513,1747648242071,-420.0,0.00013698,2]
[361625514,1747648242080,-420.0,0.00013698,2]
[361625515,1747648242089,-420.0,0.00013698,2]
[361625516,1747648242098,-420.0,0.00013698,2]
[361625517,1747648242108,-420.0,0.00013698,2]
[361625518,1747648242118,-420.0,0.00013698,2]
[361625519,1747648242128,-420.0,0.00013698,2]
[361625520,1747648242137,-420.0,0.00013698,2]
[361625521,1747648242148,-420.0,0.00013698,2]
[361625522,1747648242158,-420.0,0.00013698,2]
[361625523,1747648242168,-402.14418664,0.00013698,2]
[361625524,1747648242177,-420.0,0.00013698,2]
[361625525,1747648242187,-488.52,0.00013698,2]
[361625526,1747648242202,-400.0,0.00013698,2]
[361625527,1747648242212,-420.0,0.00013698,2]
[361625528,1747648242221,-420.0,0.00013698,2]
[361625529,1747648242231,-437.68,0.00013698,2]
[361625530,1747648242240,-401.61153516,0.00013698,2]
[361625531,1747648242250,-420.0,0.00013698,2]
[361625532,1747648242259,-420.0,0.00013698,2]
[361625533,1747648242269,-420.0,0.00013698,2]
[361625534,1747648242281,-400.0,0.00013698,2]
[361625535,1747648242290,-420.0,0.00013698,2]
[361625536,1747648242300,-420.0,0.00013698,2]
[361625537,1747648242309,-420.0,0.00013698,2]
[361625538,1747648242320,-420.0,0.00013698,2]
[361625539,1747648242330,-420.0,0.00013698,2]
[361625540,1747648242340,-544.01,0.00013698,2]
[361625541,1747648242349,-420.0,0.00013698,2]
[361625542,1747648242359,-420.0,0.00013698,2]
[361625543,1747648242369,-420.0,0.00013698,2]
[361625544,1747648242378,-400.0,0.00013698,2]
[361625545,1747648242387,-408.7651508,0.00013698,2]
[361625546,1747648242396,-420.0,0.00013698,2]
[361625547,1747648242406,-420.0,0.00013698,2]
[361625548,1747648242418,-400.0,0.00013698,2]
[361625549,1747648242427,-397.51341028,0.00013698,2]
[361625550,1747648242437,-420.0,0.00013698,2]
[361625552,1747648242446,-420.0,0.00013698,2]
[361625553,1747648242455,-420.0,0.00013698,2]
[361625554,1747648242465,-401.12847878,0.00013698,2]
[361625555,1747648242474,-400.0,0.00013698,2]
[361625556,1747648242483,-482.57,0.00013698,2]
[361625557,1747648242492,-164.80463212,0.00013698,2]
[361625558,1747648242501,-420.0,0.00013698,2]
[361625559,1747648242511,-420.0,0.00013698,2]
[361625560,1747648242522,-420.0,0.00013698,2]
[361625561,1747648242533,-420.0,0.00013698,2]
[361625562,1747648242542,-420.0,0.00013698,2]
[361625563,1747648242551,-560.50663043,0.00013698,2]
[361625564,1747648242561,-420.0,0.00013698,2]
[361625565,1747648242571,-493.2,0.00013698,2]
[361625566,1747648242580,-420.0,0.00013698,2]
[361625567,1747648242590,-400.48229603,0.00013698,2]
[361625568,1747648242599,-420.0,0.00013698,2]
[361625569,1747648242609,-420.0,0.00013698,2]
[361625570,1747648242618,-420.0,0.00013698,2]
[361625571,1747648242628,-420.0,0.00013698,2]
[361625572,1747648242638,-172.809326,0.00013698,2]
[361625573,1747648242647,-622.95,0.00013698,2]
[361625574,1747648242656,-420.0,0.00013698,2]
[361625575,1747648242665,-420.0,0.00013698,2]
[361625576,1747648242674,-510.44,0.00013698,2]
[361625577,1747648242683,-380.0,0.00013698,2]
[361625578,1747648242692,-811.14,0.00013698,2]
[361625579,1747648242702,-420.0,0.00013698,2]
[361625580,1747648242712,-420.0,0.00013698,2]
[361625581,1747648242722,-518.18,0.00013698,2]
[361625582,1747648242731,-420.0,0.00013698,2]
[361625583,1747648242740,-592.23,0.00013698,2]
[361625584,1747648242749,-310.045039,0.00013698,2]
[361625585,1747648242758,-420.0,0.00013698,2]
[361625586,1747648242768,-420.0,0.00013698,2]
[361625587,1747648242779,-709.09,0.00013698,2]
[361625588,1747648242789,-648.67,0.00013698,2]
[361625589,1747648242799,-420.0,0.00013698,2]
[361625590,1747648242808,-420.0,0.00013698,2]
[361625591,1747648242817,-403.28142654,0.00013698,2]
[361625592,1747648242827,-400.0,0.00013698,2]
[361625593,1747648242837,-1026.68,0.00013698,2]
[361625594,1747648242846,-420.0,0.00013698,2]
[361625595,1747648242856,-420.0,0.00013698,2]
[361625596,1747648242865,-420.0,0.00013698,2]
[361625597,1747648242876,-420.0,0.00013698,2]
[361625598,1747648242885,-420.0,0.00013698,2]
[361625599,1747648242895,-420.0,0.00013698,2]
[361625600,1747648242906,-560.32,0.00013698,2]
[361625601,1747648242915,-420.0,0.00013698,2]
[361625602,1747648242927,-400.0,0.00013698,2]
[361625604,1747648242936,-420.0,0.00013698,2]
[361625606,1747648242953,-420.0,0.00013698,2]
[361625608,1747648242962,-624.0,0.00013698,2]
[361625610,1747648242972,-420.0,0.00013698,2]
[361625612,1747648242981,-420.0,0.00013698,2]
[361625614,1747648242991,-398.5878104,0.00013698,2]
[361625616,1747648243001,-420.0,0.00013698,2]
[361625618,1747648243011,-493.01,0.00013698,2]
[361625620,1747648243020,-420.0,0.00013698,2]
[361625622,1747648243029,-420.0,0.00013698,2]
[361625624,1747648243039,-360.0,0.00013698,2]
[361625626,1747648243048,-420.0,0.00013698,2]
[361625627,1747648243058,-420.0,0.00013698,2]
[361625629,1747648243068,-420.0,0.00013698,2]
[361625631,1747648243078,-575.01,0.00013698,2]
[361625633,1747648243087,-462.03,0.00013698,2]
[361625635,1747648243096,-819.33,0.00013698,2]
[361625637,1747648243106,-420.0,0.00013698,2]
[361625639,1747648243115,-600.32,0.00013698,2]
[361625641,1747648243125,-381.75,0.00013698,2]
[361625643,1747648243135,-420.0,0.00013698,2]
[361625644,1747648243144,-420.0,0.00013698,2]
[361625646,1747648243154,-420.0,0.00013698,2]
[361625648,1747648243164,-1600.22,0.00013698,2]
[361625650,1747648243173,-420.0,0.00013698,2]
[361625652,1747648243183,-420.0,0.00013698,2]
[361625654,1747648243193,-400.0,0.00013698,2]
[361625656,1747648243206,-420.0,0.00013698,2]
[361625658,1747648243215,-400.0,0.00013698,2]
[361625660,1747648243225,-420.0,0.00013698,2]
[361625662,1747648243234,-420.0,0.00013698,2]
[361625664,1747648243245,-470.68,0.00013698,2]
[361625666,1747648243255,-407.17600583,0.00013698,2]
[361625668,1747648243264,-420.0,0.00013698,2]
[361625670,1747648243275,-400.35985016,0.00013698,2]
[361625672,1747648243285,-420.0,0.00013698,2]
[361625674,1747648243295,-400.0,0.00013698,2]
[361625676,1747648243304,-400.0,0.00013698,2]
[361625678,1747648243313,-507.03,0.00013698,2]
[361625680,1747648243323,-573.08,0.00013698,2]
[361625682,1747648243332,-420.0,0.00013698,2]
[361625685,1747648243343,-420.0,0.00013698,2]
[361625687,1747648243352,-420.0,0.00013698,2]
[361625689,1747648243362,-403.42169906,0.00013698,2]
[361625691,1747648243371,-420.0,0.00013698,2]
[361625693,1747648243382,-443.39,0.00013698,2]
[361625695,1747648243392,-420.0,0.00013698,2]
[361625697,1747648243401,-500.0,0.00013698,2]
[361625699,1747648243410,-420.0,0.00013698,2]
[361625701,1747648243419,-420.0,0.00013698,2]
[361625703,1747648243428,-420.0,0.00013698,2]
[361625705,1747648243437,-781.83,0.00013698,2]
[361625707,1747648243446,-420.0,0.00013698,2]
[361625709,1747648243455,-420.0,0.00013698,2]
[361625711,1747648243464,-420.0,0.00013698,2]
[361625713,1747648243473,-931.3,0.00013698,2]
[361625715,1747648243483,-420.0,0.00013698,2]
[361625716,1747648243492,-420.0,0.00013698,2]
[361625719,1747648243502,-400.0,0.00013698,2]
[361625720,1747648243511,-420.0,0.00013698,2]
[361625722,1747648243520,-420.0,0.00013698,2]
[361625724,1747648243530,-400.0,0.00013698,2]
[361625726,1747648243539,-571.15,0.00013698,2]
[361625728,1747648243549,-420.0,0.00013698,2]
[361625730,1747648243565,-602.55,0.00013698,2]
[361625732,1747648243581,-420.0,0.00013698,2]
[361625734,1747648243591,-420.0,0.00013698,2]
[361625736,1747648243600,-420.0,0.00013698,2]
[361625738,1747648243609,-420.0,0.00013698,2]
[361625740,1747648243618,-420.0,0.00013698,2]
[361625742,1747648243627,-539.36,0.00013698,2]
[361625744,1747648243636,-887.82,0.00013698,2]
[361625746,1747648243646,-420.0,0.00013698,2]
[361625748,1747648243655,-400.0,0.00013698,2]
[361625750,1747648243664,-400.0,0.00013698,2]
[361625752,1747648243673,-420.0,0.00013698,2]
[361625754,1747648243682,-420.0,0.00013698,2]
[361625756,1747648243692,-400.0,0.00013698,2]
[361625758,1747648243701,-420.0,0.00013698,2]
[361625760,1747648243710,-500.0,0.00013698,2]
[361625762,1747648243719,-500.0,0.00013698,2]
[361625764,1747648243728,-420.0,0.00013698,2]
[361625766,1747648243737,-403.89446512,0.00013698,2]
[361625768,1747648243747,-639.68,0.00013698,2]
[361625770,1747648243756,-420.0,0.00013698,2]
[361625772,1747648243765,-696.92,0.00013698,2]
[361625774,1747648243774,-568.07,0.00013698,2]
[361625776,1747648243787,-196.46299033,0.00013698,2]
[361625778,1747648243796,-420.0,0.00013698,2]
[361625780,1747648243805,-420.0,0.00013698,2]
[361625782,1747648243814,-400.0,0.00013698,2]
[361625784,1747648243824,-405.79344764,0.00013698,2]
[361625786,1747648243833,-765.86,0.00013698,2]
[361625788,1747648243842,-964.9,0.00013698,2]
[361625790,1747648243851,-510.24,0.00013698,2]